{"text_format":"2","workbook":"xlsx","n_sheets":1,"sheets":["Sheet1"],"not_rendered":{"charts":0,"images":0,"macros":0,"external_links":0,"defined_names":2,"comments":0,"pivot_tables":0},"unopened":[],"bounds":{"document_bytes":16777216,"sheet_cells":100000,"run_cost":"one","rows_first":2000,"rows_last":500,"rows_between":2000,"halvings":0,"cell_chars":16384,"cell_head_chars":4096},"cells_cut":0,"cells_raw":0,"read":"whole","date_system":"1900"}

{"sheet":"Sheet1","index":0,"n_rows":16,"n_cols":17,"rows_kept":16,"cut":false,"hidden":false,"merged":[[0,0,1,0],[0,1,1,1],[0,3,1,3],[0,4,1,4],[0,5,1,5],[0,2,1,2],[0,9,1,9],[0,16,1,16],[0,11,0,13],[0,6,1,6],[0,8,1,8],[0,7,1,7],[0,10,1,10],[0,14,1,14],[0,15,1,15]]}
["DIPARTIMENTO EROGANTE","CORSO DI STUDIO","TIPOLOGIA DEL CORSO","CURRICULUM","ANNO","SEMESTRE","MODULO DI INSEGNAMENTO (UD)","UD_SSD","PARTIZIONE","TAF","UD_CFU","TIP. DIDATTICA (ORE)",null,null,"TOTALE ORE DOCENTE","IMPORTO ORARIO LORDO AL NETTO DEGLI ONERI RIFLESSI","LORDO BENEFICIARIO AL NETTO DEGLI ONERI RIFLESSI"]
[{"$nulls":11},"LEZ","ESE\nTIR","LAB"]
["DIPARTIMENTO DI CHIMICA","SCIENZE AMBIENTALI (D.M.270/04)","TRI","Comune",1,1,"INFORMATICA","INF/01",null,"F",4,27,15,0,{"$f":"SUM(L3:N3)","v":42},25,{"$f":"O3*P3","v":1050}]
["DIPARTIMENTO DI INFORMATICA","COMPUTER SCIENCE  (D.M.270/04)","MAG","Multimediality And Innovation In Digital Communication",2,1,"DISTRIBUTED SYSTEMS","INF/01",null,"B",6,32,0,30,{"$f":"SUM(L4:N4)","v":62},25,{"$f":"O4*P4","v":1550}]
["DIPARTIMENTO DI INFORMATICA","DATA SCIENCE (D.M.270/04)","MAG","Comune",2,1,"MODELLI ECONOMICI PER L'INNOVAZIONE GUIDATA DAI DATI ","SECS-P/08",null,"B",6,48,0,0,{"$f":"SUM(L5:N5)","v":48},25,1200]
["DIPARTIMENTO DI INFORMATICA","INFORMATICA E COMUNICAZIONE DIGITALE (D.M.270/04) - TARANTO","TRI","Comune",1,1,"PROGRAMMAZIONE","INF/01",null,"A",12,72,45,0,{"$f":"SUM(L6:N6)","v":117},25,2925]
["DIPARTIMENTO DI INFORMATICA","INFORMATICA E COMUNICAZIONE DIGITALE (D.M.270/04) - TARANTO","TRI","Comune",2,1,"STATISTICA MATEMATICA","MAT/06",null,"C",6,32,30,0,{"$f":"SUM(L7:N7)","v":62},25,1550]
["DIPARTIMENTO DI INFORMATICA","INFORMATICA E TECNOLOGIE PER LA PRODUZIONE DEL SOFTWARE (D.M.270/04)","TRI","Comune",1,1,"PROGRAMMAZIONE","ING-INF/05","AL","B",12,72,45,0,{"$f":"SUM(L8:N8)","v":117},25,2925]
["DIPARTIMENTO DI INFORMATICA","INFORMATICA E TECNOLOGIE PER LA PRODUZIONE DEL SOFTWARE (D.M.270/04)","TRI","Comune",3,1,"SVILUPPO DI MOBILE SOFTWARE","ING-INF/05",null,"B",8,48,0,30,{"$f":"SUM(L9:N9)","v":78},25,1950]
["DIPARTIMENTO DI INFORMATICA","SICUREZZA INFORMATICA","MAG","Comune",1,1,"SICUREZZA NELLE RETI E NEI SISTEMI DISTRIBUITI","INF/01",null,"B",5,32,15,0,{"$f":"SUM(L10:N10)","v":47},25,1175]
["DIPARTIMENTO DI INFORMATICA","SICUREZZA INFORMATICA","MAG","Comune",2,1,"METODI FORMALI PER LA SICUREZZA","INF/01",null,"B",5,32,0,15,{"$f":"SUM(L11:N11)","v":47},25,1175]
["DIPARTIMENTO DI INFORMATICA","SICUREZZA INFORMATICA","MAG","Comune",2,1,"INFORMATICA E DIRITTO","IUS/01",null,"D",6,48,0,0,{"$f":"SUM(L12:N12)","v":48},25,1200]
["DIPARTIMENTO DI SCIENZE DELLA TERRA E GEOAMBIENTALI","CONSERVAZIONE E RESTAURO DEI BENI CULTURALI","CU5","Comune",3,1,"FISICA TECNICA AMBIENTALE","ING-IND/11",null,null,6,40,12,0,{"$f":"SUM(L13:N13)","v":52},25,1300]
["DIPARTIMENTO DI SCIENZE DELLA TERRA E GEOAMBIENTALI","CONSERVAZIONE E RESTAURO DEI BENI CULTURALI","CU5","Comune",5,1,"DISEGNO E RILIEVO","ICAR/17",null,"B",6,48,0,0,{"$f":"SUM(L14:N14)","v":48},25,1200]
["DIPARTIMENTO DI SCIENZE DELLA TERRA E GEOAMBIENTALI","CONSERVAZIONE E RESTAURO DEI BENI CULTURALI","CU5","Comune",5,1,"ECONOMIA E GESTIONE DELLE IMPRESE","SECS/08",null,"C",6,48,0,0,{"$f":"SUM(L15:N15)","v":48},25,1200]
["DIPARTIMENTO DI SCIENZE DELLA TERRA E GEOAMBIENTALI","SCIENZE GEOLOGICHE (D.M.270/04)","TRI","Comune",1,2,"INFORMATICA E ANALISI DATI GEOLOGICI MOD. 1","ING-INF/05",null,"A",6,32,32,0,{"$f":"SUM(L16:N16)","v":64},25,1600]